Workbook

Sheet 护理岗
B1: 中山大学附属第一医院贵州医院 2023年公开招聘事业编制工作人员总成绩及进入体检环节人员名单（护理岗52）
A2: 序号 | B2: 考场 | C2: 抽签号 | D2: 应考人数 | E2: 实考人数 | F2: 面试成绩总分 | G2: 面试成绩平均分 | H2: 四舍五入保留四位小数 | I2: 修正系数 | J2: 四舍五入修正系数
A3: 1 | B3: 考场一 | C3: 1-73 | D3: 73 | E3: 68 | F3: 5455.99 | G3: =F3/E3 -> 80.2351 | H3: 80.2351 | I3: =H6/H3 -> 0.9962198589 | J3: 0.9962
A4: 2 | B4: 考场二 | C4: 74-146 | D4: 73 | E4: 66 | F4: 5152.34 | G4: 78.0658 | H4: 78.0658 | I4: =H6/H4 -> 1.023902913 | J4: 1.0239
A5: 3 | B5: 考场三 | C5: 147-219 | D5: 73 | E5: 71 | F5: 5777.69 | G5: 81.3759 | H5: 81.3759 | I5: =H6/H5 -> 0.9822539597 | J5: 0.9823
A6: 4 | B6: 合计 | C6: \ | D6: =SUM(D3:D5) -> 219 | E6: =SUM(E3:E5) -> 205 | F6: =SUM(F3:F5) -> 16386.02 | G6: 79.9318 | H6: 79.9318 | I6: \ | J6: \
A8: 序号 | B8: 抽签号 | C8: 姓名 | D8: 准考证号 | E8: 岗位 | F8: 笔试成绩 | G8: 笔试成绩 （占比40%） | H8: 面试成绩 | I8: 修正系数 | J8: 修正面试成绩 | K8: 面试成绩 （占比60%） | L8: 总成绩 | M8: 排名 | N8: 是否进入体检环节
A9: 1 | B9: 194 | C9: 付雪珂 | D9: 52000405430 | E9: 护理 | F9: 92 | G9: =F9*0.4 -> 36.8 | H9: 87.33 | I9: 0.9823 | J9: =H9*I9 -> 85.78 | K9: =J9*0.6 -> 51.47 | L9: =G9+K9 -> 88.27 | M9: 1 | N9: 是
A10: 2 | B10: 141 | C10: 周琴 | D10: 52000301660 | E10: 护理 | F10: 84 | G10: =F10*0.4 -> 33.6 | H10: 84.67 | I10: 1.0239 | J10: =H10*I10 -> 86.69 | K10: =J10*0.6 -> 52.02 | L10: =G10+K10 -> 85.62 | M10: 2 | N10: 是
A11: 3 | B11: 109 | C11: 陈志明 | D11: 52000301342 | E11: 护理 | F11: 72 | G11: 28.8 | H11: 91.33 | I11: 1.0239 | J11: 93.51 | K11: 56.11 | L11: 84.91 | M11: 3 | N11: 是
A12: 4 | B12: 8 | C12: 袁欢 | D12: 52000406225 | E12: 护理 | F12: 78 | G12: 31.2 | H12: 89.67 | I12: 0.9962 | J12: 89.33 | K12: 53.60 | L12: 84.80 | M12: 4 | N12: 是
A13: 5 | B13: 27 | C13: 梁火情 | D13: 52000301435 | E13: 护理 | F13: 76 | G13: 30.4 | H13: 90.00 | I13: 0.9962 | J13: 89.66 | K13: 53.79 | L13: 84.19 | M13: 5 | N13: 是
A14: 6 | B14: 46 | C14: 黄兴当 | D14: 52000300355 | E14: 护理 | F14: 76 | G14: 30.4 | H14: 90.00 | I14: 0.9962 | J14: 89.66 | K14: 53.79 | L14: 84.19 | M14: 5 | N14: 是
A15: 7 | B15: 129 | C15: 吴靖 | D15: 52000302221 | E15: 护理 | F15: 74 | G15: 29.6 | H15: 88.67 | I15: 1.0239 | J15: 90.79 | K15: 54.47 | L15: 84.07 | M15: 7 | N15: 是
A16: 8 | B16: 97 | C16: 马思婷 | D16: 52000302660 | E16: 护理 | F16: 78 | G16: 31.2 | H16: 85.33 | I16: 1.0239 | J16: 87.37 | K16: 52.42 | L16: 83.62 | M16: 8 | N16: 是
A17: 9 | B17: 41 | C17: 卢建发 | D17: 52000302436 | E17: 护理 | F17: 76 | G17: 30.4 | H17: 88.67 | I17: 0.9962 | J17: 88.33 | K17: 53.00 | L17: 83.40 | M17: 9 | N17: 是
A18: 10 | B18: 112 | C18: 龙倩 | D18: 52000404728 | E18: 护理 | F18: 72 | G18: 28.8 | H18: 88.67 | I18: 1.0239 | J18: 90.79 | K18: 54.47 | L18: 83.27 | M18: 10 | N18: 是
A19: 11 | B19: 94 | C19: 邓亚琴 | D19: 52000302046 | E19: 护理 | F19: 70 | G19: 28 | H19: 89.67 | I19: 1.0239 | J19: 91.81 | K19: 55.09 | L19: 83.09 | M19: 11 | N19: 是
A20: 12 | B20: 72 | C20: 余洁 | D20: 52000301844 | E20: 护理 | F20: 70 | G20: 28 | H20: 92.00 | I20: 0.9962 | J20: 91.65 | K20: 54.99 | L20: 82.99 | M20: 12 | N20: 是
A21: 13 | B21: 125 | C21: 王道兰 | D21: 52000302919 | E21: 护理 | F21: 74 | G21: 29.6 | H21: 86.67 | I21: 1.0239 | J21: 88.74 | K21: 53.24 | L21: 82.84 | M21: 13 | N21: 是
A22: 14 | B22: 158 | C22: 王青 | D22: 52000404607 | E22: 护理 | F22: 74 | G22: 29.6 | H22: 90.33 | I22: 0.9823 | J22: 88.73 | K22: 53.24 | L22: 82.84 | M22: 13 | N22: 是
A23: 15 | B23: 43 | C23: 丁欢 | D23: 52000301951 | E23: 护理 | F23: 74 | G23: 29.6 | H23: 89.00 | I23: 0.9962 | J23: 88.66 | K23: 53.20 | L23: 82.80 | M23: 15 | N23: 是
A24: 16 | B24: 207 | C24: 戴溶 | D24: 52000302617 | E24: 护理 | F24: 84 | G24: 33.6 | H24: 83.33 | I24: 0.9823 | J24: 81.86 | K24: 49.11 | L24: 82.71 | M24: 16 | N24: 是
A25: 17 | B25: 74 | C25: 毕顺蓉 | D25: 52000303125 | E25: 护理 | F25: 70 | G25: 28 | H25: 89.00 | I25: 1.0239 | J25: 91.13 | K25: 54.68 | L25: 82.68 | M25: 17 | N25: 是
A26: 18 | B26: 21 | C26: 王霞 | D26: 52000300927 | E26: 护理 | F26: 72 | G26: 28.8 | H26: 90.00 | I26: 0.9962 | J26: 89.66 | K26: 53.79 | L26: 82.59 | M26: 18 | N26: 是
A27: 19 | B27: 93 | C27: 魏艺 | D27: 52000300733 | E27: 护理 | F27: 72 | G27: 28.8 | H27: 86.67 | I27: 1.0239 | J27: 88.74 | K27: 53.24 | L27: 82.04 | M27: 19 | N27: 是
A28: 20 | B28: 135 | C28: 任家玉 | D28: 52000405660 | E28: 护理 | F28: 72 | G28: 28.8 | H28: 86.67 | I28: 1.0239 | J28: 88.74 | K28: 53.24 | L28: 82.04 | M28: 19 | N28: 是
A29: 21 | B29: 23 | C29: 罗艳 | D29: 52000405407 | E29: 护理 | F29: 80 | G29: 32 | H29: 83.67 | I29: 0.9962 | J29: 83.35 | K29: 50.01 | L29: 82.01 | M29: 21 | N29: 是
A30: 22 | B30: 58 | C30: 陈莉 | D30: 52000301905 | E30: 护理 | F30: 78 | G30: 31.2 | H30: 85.00 | I30: 0.9962 | J30: 84.68 | K30: 50.81 | L30: 82.01 | M30: 21 | N30: 是
A31: 23 | B31: 56 | C31: 尤铃 | D31: 52000404306 | E31: 护理 | F31: 70 | G31: 28 | H31: 90.33 | I31: 0.9962 | J31: 89.99 | K31: 53.99 | L31: 81.99 | M31: 23 | N31: 是
A32: 24 | B32: 118 | C32: 耿成红 | D32: 52000404958 | E32: 护理 | F32: 74 | G32: 29.6 | H32: 85.00 | I32: 1.0239 | J32: 87.03 | K32: 52.22 | L32: 81.82 | M32: 24 | N32: 是
A33: 25 | B33: 7 | C33: 王芬 | D33: 52000303413 | E33: 护理 | F33: 70 | G33: 28 | H33: 90.00 | I33: 0.9962 | J33: 89.66 | K33: 53.79 | L33: 81.79 | M33: 25 | N33: 是
A34: 26 | B34: 162 | C34: 毛福满 | D34: 52000302706 | E34: 护理 | F34: 76 | G34: 30.4 | H34: 87.00 | I34: 0.9823 | J34: 85.46 | K34: 51.28 | L34: 81.68 | M34: 26 | N34: 是
A35: 27 | B35: 147 | C35: 杨琴 | D35: 52000405126 | E35: 护理 | F35: 74 | G35: 29.6 | H35: 88.33 | I35: 0.9823 | J35: 86.77 | K35: 52.06 | L35: 81.66 | M35: 27 | N35: 是
A36: 28 | B36: 103 | C36: 吴春芳 | D36: 52000302724 | E36: 护理 | F36: 70 | G36: 28 | H36: 87.33 | I36: 1.0239 | J36: 89.42 | K36: 53.65 | L36: 81.65 | M36: 28 | N36: 是
A37: 29 | B37: 3 | C37: 刘萍 | D37: 52000300106 | E37: 护理 | F37: 78 | G37: 31.2 | H37: 84.00 | I37: 0.9962 | J37: 83.68 | K37: 50.21 | L37: 81.41 | M37: 29 | N37: 是
A38: 30 | B38: 218 | C38: 杨绪群 | D38: 52000302852 | E38: 护理 | F38: 78 | G38: 31.2 | H38: 84.33 | I38: 0.9823 | J38: 82.84 | K38: 49.70 | L38: 80.90 | M38: 30 | N38: 是
A39: 31 | B39: 171 | C39: 韩溢 | D39: 52000301325 | E39: 护理 | F39: 70 | G39: 28 | H39: 89.67 | I39: 0.9823 | J39: 88.08 | K39: 52.85 | L39: 80.85 | M39: 31 | N39: 是
A40: 32 | B40: 202 | C40: 张静思 | D40: 52000403816 | E40: 护理 | F40: 70 | G40: 28 | H40: 89.67 | I40: 0.9823 | J40: 88.08 | K40: 52.85 | L40: 80.85 | M40: 31 | N40: 是
A41: 33 | B41: 29 | C41: 黄奕 | D41: 52000405928 | E41: 护理 | F41: 70 | G41: 28 | H41: 88.33 | I41: 0.9962 | J41: 87.99 | K41: 52.80 | L41: 80.80 | M41: 33 | N41: 是
A42: 34 | B42: 211 | C42: 朱新 | D42: 52000405539 | E42: 护理 | F42: 72 | G42: 28.8 | H42: 88.00 | I42: 0.9823 | J42: 86.44 | K42: 51.87 | L42: 80.67 | M42: 34 | N42: 是
A43: 35 | B43: 215 | C43: 徐迅 | D43: 52000301150 | E43: 护理 | F43: 80 | G43: 32 | H43: 82.00 | I43: 0.9823 | J43: 80.55 | K43: 48.33 | L43: 80.33 | M43: 35 | N43: 是
A44: 36 | B44: 161 | C44: 王显华 | D44: 52000403719 | E44: 护理 | F44: 76 | G44: 30.4 | H44: 84.67 | I44: 0.9823 | J44: 83.17 | K44: 49.90 | L44: 80.30 | M44: 36 | N44: 是
A45: 37 | B45: 190 | C45: 章珊 | D45: 52000300910 | E45: 护理 | F45: 72 | G45: 28.8 | H45: 87.33 | I45: 0.9823 | J45: 85.78 | K45: 51.47 | L45: 80.27 | M45: 37 | N45: 是
A46: 38 | B46: 75 | C46: 杨毅 | D46: 52000300957 | E46: 护理 | F46: 72 | G46: 28.8 | H46: 83.67 | I46: 1.0239 | J46: 85.67 | K46: 51.40 | L46: 80.20 | M46: 38 | N46: 是
A47: 39 | B47: 25 | C47: 彭盼 | D47: 52000301225 | E47: 护理 | F47: 70 | G47: 28 | H47: 87.33 | I47: 0.9962 | J47: 87.00 | K47: 52.20 | L47: 80.20 | M47: 38 | N47: 是
A48: 40 | B48: 80 | C48: 詹永佳 | D48: 52000300144 | E48: 护理 | F48: 80 | G48: 32 | H48: 78.00 | I48: 1.0239 | J48: 79.86 | K48: 47.92 | L48: 79.92 | M48: 40 | N48: 是
A49: 41 | B49: 181 | C49: 袁艳 | D49: 52000302356 | E49: 护理 | F49: 70 | G49: 28 | H49: 88.00 | I49: 0.9823 | J49: 86.44 | K49: 51.87 | L49: 79.87 | M49: 41 | N49: 是
A50: 42 | B50: 15 | C50: 邹新 | D50: 52000302015 | E50: 护理 | F50: 74 | G50: 29.6 | H50: 84.00 | I50: 0.9962 | J50: 83.68 | K50: 50.21 | L50: 79.81 | M50: 42 | N50: 是
A51: 43 | B51: 101 | C51: 朱方玲 | D51: 52000404551 | E51: 护理 | F51: 70 | G51: 28 | H51: 84.33 | I51: 1.0239 | J51: 86.35 | K51: 51.81 | L51: 79.81 | M51: 42 | N51: 是
A52: 44 | B52: 44 | C52: 张敏 | D52: 52000302506 | E52: 护理 | F52: 72 | G52: 28.8 | H52: 85.33 | I52: 0.9962 | J52: 85.01 | K52: 51.00 | L52: 79.80 | M52: 44 | N52: 是
A53: 45 | B53: 54 | C53: 雷芳 | D53: 52000300731 | E53: 护理 | F53: 72 | G53: 28.8 | H53: 85.33 | I53: 0.9962 | J53: 85.01 | K53: 51.00 | L53: 79.80 | M53: 44 | N53: 是
A54: 46 | B54: 32 | C54: 王艳 | D54: 52000405956 | E54: 护理 | F54: 76 | G54: 30.4 | H54: 82.33 | I54: 0.9962 | J54: 82.02 | K54: 49.21 | L54: 79.61 | M54: 46 | N54: 是
A55: 47 | B55: 82 | C55: 郑艳 | D55: 52000406420 | E55: 护理 | F55: 72 | G55: 28.8 | H55: 82.67 | I55: 1.0239 | J55: 84.65 | K55: 50.79 | L55: 79.59 | M55: 47 | N55: 是
A56: 48 | B56: 139 | C56: 白兴一 | D56: 52000303212 | E56: 护理 | F56: 74 | G56: 29.6 | H56: 81.33 | I56: 1.0239 | J56: 83.27 | K56: 49.96 | L56: 79.56 | M56: 48 | N56: 是
A57: 49 | B57: 13 | C57: 龙婷 | D57: 52000301302 | E57: 护理 | F57: 80 | G57: 32 | H57: 79.33 | I57: 0.9962 | J57: 79.03 | K57: 47.42 | L57: 79.42 | M57: 49 | N57: 是
A58: 50 | B58: 61 | C58: 刘诚成 | D58: 52000302111 | E58: 护理 | F58: 76 | G58: 30.4 | H58: 82.00 | I58: 0.9962 | J58: 81.69 | K58: 49.01 | L58: 79.41 | M58: 50 | N58: 是
A59: 51 | B59: 84 | C59: 唐光通 | D59: 52000301107 | E59: 护理 | F59: 80 | G59: 32 | H59: 77.00 | I59: 1.0239 | J59: 78.84 | K59: 47.30 | L59: 79.30 | N59: 否
A60: 52 | B60: 201 | C60: 梁涛 | D60: 52000406357 | E60: 护理 | F60: 72 | G60: 28.8 | H60: 85.67 | I60: 0.9823 | J60: 84.15 | K60: 50.49 | L60: 79.29 | N60: 否
A61: 53 | B61: 169 | C61: 张菁源 | D61: 52000301246 | E61: 护理 | F61: 70 | G61: 28 | H61: 87.00 | I61: 0.9823 | J61: 85.46 | K61: 51.28 | L61: 79.28 | N61: 否
A62: 54 | B62: 184 | C62: 杨光粉 | D62: 52000301653 | E62: 护理 | F62: 70 | G62: 28 | H62: 87.00 | I62: 0.9823 | J62: 85.46 | K62: 51.28 | L62: 79.28 | N62: 否
A63: 55 | B63: 185 | C63: 张官欢 | D63: 52000300840 | E63: 护理 | F63: 70 | G63: 28 | H63: 87.00 | I63: 0.9823 | J63: 85.46 | K63: 51.28 | L63: 79.28 | N63: 否
A64: 56 | B64: 40 | C64: 牟露敏 | D64: 52000301033 | E64: 护理 | F64: 70 | G64: 28 | H64: 85.67 | I64: 0.9962 | J64: 85.34 | K64: 51.21 | L64: 79.21 | N64: 否
A65: 57 | B65: 47 | C65: 刘玉梅 | D65: 52000405008 | E65: 护理 | F65: 80 | G65: 32 | H65: 78.33 | I65: 0.9962 | J65: 78.03 | K65: 46.82 | L65: 78.82 | N65: 否
A66: 58 | B66: 45 | C66: 欧霞 | D66: 52000302024 | E66: 护理 | F66: 70 | G66: 28 | H66: 85.00 | I66: 0.9962 | J66: 84.68 | K66: 50.81 | L66: 78.81 | N66: 否
A67: 59 | B67: 88 | C67: 徐天丽 | D67: 52000300533 | E67: 护理 | F67: 74 | G67: 29.6 | H67: 80.00 | I67: 1.0239 | J67: 81.91 | K67: 49.15 | L67: 78.75 | N67: 否
A68: 60 | B68: 22 | C68: 时璇 | D68: 52000303508 | E68: 护理 | F68: 74 | G68: 29.6 | H68: 82.00 | I68: 0.9962 | J68: 81.69 | K68: 49.01 | L68: 78.61 | N68: 否
A69: 61 | B69: 37 | C69: 陈思丹 | D69: 52000303433 | E69: 护理 | F69: 72 | G69: 28.8 | H69: 83.33 | I69: 0.9962 | J69: 83.01 | K69: 49.81 | L69: 78.61 | N69: 否
A70: 62 | B70: 143 | C70: 肖泽 | D70: 52000302642 | E70: 护理 | F70: 72 | G70: 28.8 | H70: 81.00 | I70: 1.0239 | J70: 82.94 | K70: 49.76 | L70: 78.56 | N70: 否
A71: 63 | B71: 115 | C71: 汪激琴 | D71: 52000300520 | E71: 护理 | F71: 74 | G71: 29.6 | H71: 79.67 | I71: 1.0239 | J71: 81.57 | K71: 48.94 | L71: 78.54 | N71: 否
A72: 64 | B72: 168 | C72: 胡冉 | D72: 52000301457 | E72: 护理 | F72: 76 | G72: 30.4 | H72: 81.67 | I72: 0.9823 | J72: 80.22 | K72: 48.13 | L72: 78.53 | N72: 否
A73: 65 | B73: 174 | C73: 唐清莲 | D73: 52000301233 | E73: 护理 | F73: 76 | G73: 30.4 | H73: 81.67 | I73: 0.9823 | J73: 80.22 | K73: 48.13 | L73: 78.53 | N73: 否
A74: 66 | B74: 100 | C74: 李淑英 | D74: 52000301025 | E74: 护理 | F74: 76 | G74: =F74*0.4 -> 30.4 | H74: 78.33 | I74: 1.0239 | J74: =H74*I74 -> 80.20 | K74: =J74*0.6 -> 48.12 | L74: =G74+K74 -> 78.52 | N74: 否
A75: 67 | B75: 165 | C75: 韦小银 | D75: 52000404455 | E75: 护理 | F75: 78 | G75: 31.2 | H75: 80.00 | I75: 0.9823 | J75: 78.58 | K75: 47.15 | L75: 78.35 | N75: 否
A76: 68 | B76: 107 | C76: 熊燕 | D76: 52000301019 | E76: 护理 | F76: 74 | G76: 29.6 | H76: 79.33 | I76: 1.0239 | J76: 81.23 | K76: 48.74 | L76: 78.34 | N76: 否
A77: 69 | B77: 189 | C77: 田旭 | D77: 52000405657 | E77: 护理 | F77: 74 | G77: 29.6 | H77: 82.67 | I77: 0.9823 | J77: 81.21 | K77: 48.72 | L77: 78.32 | N77: 否
A78: 70 | B78: 192 | C78: 杨祎莲 | D78: 52000302646 | E78: 护理 | F78: 74 | G78: 29.6 | H78: 82.67 | I78: 0.9823 | J78: 81.21 | K78: 48.72 | L78: 78.32 | N78: 否
A79: 71 | B79: 154 | C79: 余燕 | D79: 52000301315 | E79: 护理 | F79: 72 | G79: 28.8 | H79: 84.00 | I79: 0.9823 | J79: 82.51 | K79: 49.51 | L79: 78.31 | N79: 否
A80: 72 | B80: 73 | C80: 居雪 | D80: 52000303238 | E80: 护理 | F80: 76 | G80: 30.4 | H80: 80.00 | I80: 0.9962 | J80: 79.70 | K80: 47.82 | L80: 78.22 | N80: 否
A81: 73 | B81: 16 | C81: 王亿华 | D81: 52000404534 | E81: 护理 | F81: 72 | G81: 28.8 | H81: 82.67 | I81: 0.9962 | J81: 82.36 | K81: 49.41 | L81: 78.21 | N81: 否
A82: 74 | B82: 85 | C82: 黎江艳 | D82: 52000303121 | E82: 护理 | F82: 76 | G82: 30.4 | H82: 77.67 | I82: 1.0239 | J82: 79.53 | K82: 47.72 | L82: 78.12 | N82: 否
A83: 75 | B83: 68 | C83: 王钗 | D83: 52000403603 | E83: 护理 | F83: 74 | G83: 29.6 | H83: 81.00 | I83: 0.9962 | J83: 80.69 | K83: 48.42 | L83: 78.02 | N83: 否
A84: 76 | B84: 31 | C84: 黄雪 | D84: 52000303553 | E84: 护理 | F84: 70 | G84: 28 | H84: 83.67 | I84: 0.9962 | J84: 83.35 | K84: 50.01 | L84: 78.01 | N84: 否
A85: 77 | B85: 42 | C85: 石春艳 | D85: 52000405442 | E85: 护理 | F85: 74 | G85: 29.6 | H85: 80.67 | I85: 0.9962 | J85: 80.36 | K85: 48.22 | L85: 77.82 | N85: 否
A86: 78 | B86: 65 | C86: 梁玉会 | D86: 52000303313 | E86: 护理 | F86: 76 | G86: 30.4 | H86: 79.33 | I86: 0.9962 | J86: 79.03 | K86: 47.42 | L86: 77.82 | N86: 否
A87: 79 | B87: 170 | C87: 付滔 | D87: 52000405253 | E87: 护理 | F87: 72 | G87: 28.8 | H87: 83.00 | I87: 0.9823 | J87: 81.53 | K87: 48.92 | L87: 77.72 | N87: 否
A88: 80 | B88: 35 | C88: 王梅 | D88: 52000406327 | E88: 护理 | F88: 74 | G88: 29.6 | H88: 80.33 | I88: 0.9962 | J88: 80.02 | K88: 48.01 | L88: 77.61 | N88: 否
A89: 81 | B89: 106 | C89: 石梅 | D89: 52000405145 | E89: 护理 | F89: 70 | G89: 28 | H89: 80.67 | I89: 1.0239 | J89: 82.60 | K89: 49.56 | L89: 77.56 | N89: 否
A90: 82 | B90: 179 | C90: 罗小怀 | D90: 52000302513 | E90: 护理 | F90: 70 | G90: 28 | H90: 84.00 | I90: 0.9823 | J90: 82.51 | K90: 49.51 | L90: 77.51 | N90: 否
A91: 83 | B91: 187 | C91: 陈珊 | D91: 52000406124 | E91: 护理 | F91: 70 | G91: 28 | H91: 84.00 | I91: 0.9823 | J91: 82.51 | K91: 49.51 | L91: 77.51 | N91: 否
A92: 84 | B92: 77 | C92: 袁金彩 | D92: 52000403818 | E92: 护理 | F92: 72 | G92: 28.8 | H92: 79.00 | I92: 1.0239 | J92: 80.89 | K92: 48.53 | L92: 77.33 | N92: 否
A93: 85 | B93: 156 | C93: 张姝囡 | D93: 52000303349 | E93: 护理 | F93: 70 | G93: 28 | H93: 83.67 | I93: 0.9823 | J93: 82.19 | K93: 49.31 | L93: 77.31 | N93: 否
A94: 86 | B94: 213 | C94: 柴其艳 | D94: 52000303231 | E94: 护理 | F94: 70 | G94: 28 | H94: 83.67 | I94: 0.9823 | J94: 82.19 | K94: 49.31 | L94: 77.31 | N94: 否
A95: 87 | B95: 120 | C95: 陈忠彩 | D95: 52000404808 | E95: 护理 | F95: 78 | G95: 31.2 | H95: 75.00 | I95: 1.0239 | J95: 76.79 | K95: 46.08 | L95: 77.28 | N95: 否
A96: 88 | B96: 70 | C96: 杨念 | D96: 52000302033 | E96: 护理 | F96: 76 | G96: 30.4 | H96: 78.33 | I96: 0.9962 | J96: 78.03 | K96: 46.82 | L96: 77.22 | N96: 否
A97: 89 | B97: 117 | C97: 刘凯丽 | D97: 52000302415 | E97: 护理 | F97: 72 | G97: 28.8 | H97: 78.67 | I97: 1.0239 | J97: 80.55 | K97: 48.33 | L97: 77.13 | N97: 否
A98: 90 | B98: 180 | C98: 梁娅岚 | D98: 52000302129 | E98: 护理 | F98: 72 | G98: 28.8 | H98: 82.00 | I98: 0.9823 | J98: 80.55 | K98: 48.33 | L98: 77.13 | N98: 否
A99: 91 | B99: 119 | C99: 刘露 | D99: 52000405745 | E99: 护理 | F99: 74 | G99: 29.6 | H99: 77.33 | I99: 1.0239 | J99: 79.18 | K99: 47.51 | L99: 77.11 | N99: 否
A100: 92 | B100: 177 | C100: 陈廷 | D100: 52000301901 | E100: 护理 | F100: 72 | G100: 28.8 | H100: 81.67 | I100: 0.9823 | J100: 80.22 | K100: 48.13 | L100: 76.93 | N100: 否
A101: 93 | B101: 212 | C101: 李宛霖 | D101: 52000303237 | E101: 护理 | F101: 72 | G101: 28.8 | H101: 81.67 | I101: 0.9823 | J101: 80.22 | K101: 48.13 | L101: 76.93 | N101: 否
A102: 94 | B102: 182 | C102: 李立兰 | D102: 52000404931 | E102: 护理 | F102: 78 | G102: 31.2 | H102: 77.33 | I102: 0.9823 | J102: 75.96 | K102: 45.58 | L102: 76.78 | N102: 否
A103: 95 | B103: 150 | C103: 石娥 | D103: 52000300723 | E103: 护理 | F103: 72 | G103: 28.8 | H103: 81.33 | I103: 0.9823 | J103: 79.89 | K103: 47.93 | L103: 76.73 | N103: 否
A104: 96 | B104: 163 | C104: 许蓉俊 | D104: 52000403803 | E104: 护理 | F104: 70 | G104: 28 | H104: 82.67 | I104: 0.9823 | J104: 81.21 | K104: 48.72 | L104: 76.72 | N104: 否
A105: 97 | B105: 110 | C105: 王焕平 | D105: 52000303032 | E105: 护理 | F105: 72 | G105: 28.8 | H105: 78.00 | I105: 1.0239 | J105: 79.86 | K105: 47.92 | L105: 76.72 | N105: 否
A106: 98 | B106: 134 | C106: 张正贵 | D106: 52000404842 | E106: 护理 | F106: 72 | G106: 28.8 | H106: 78.00 | I106: 1.0239 | J106: 79.86 | K106: 47.92 | L106: 76.72 | N106: 否
A107: 99 | B107: 14 | C107: 陈秋悦 | D107: 52000302845 | E107: 护理 | F107: 74 | G107: 29.6 | H107: 78.67 | I107: 0.9962 | J107: 78.37 | K107: 47.02 | L107: 76.62 | N107: 否
A108: 100 | B108: 55 | C108: 崔亿 | D108: 52000303135 | E108: 护理 | F108: 74 | G108: 29.6 | H108: 78.67 | I108: 0.9962 | J108: 78.37 | K108: 47.02 | L108: 76.62 | N108: 否
A109: 101 | B109: 33 | C109: 谭玉华 | D109: 52000302344 | E109: 护理 | F109: 70 | G109: 28 | H109: 81.33 | I109: 0.9962 | J109: 81.02 | K109: 48.61 | L109: 76.61 | N109: 否
A110: 102 | B110: 48 | C110: 马安萍 | D110: 52000405026 | E110: 护理 | F110: 70 | G110: 28 | H110: 81.33 | I110: 0.9962 | J110: 81.02 | K110: 48.61 | L110: 76.61 | N110: 否
A111: 103 | B111: 122 | C111: 冉娜 | D111: 52000404246 | E111: 护理 | F111: 70 | G111: 28 | H111: 79.00 | I111: 1.0239 | J111: 80.89 | K111: 48.53 | L111: 76.53 | N111: 否
A112: 104 | B112: 157 | C112: 王益鑫 | D112: 52000404822 | E112: 护理 | F112: 70 | G112: 28 | H112: 82.33 | I112: 0.9823 | J112: 80.87 | K112: 48.52 | L112: 76.52 | N112: 否
A113: 105 | B113: 200 | C113: 陈康华 | D113: 52000301452 | E113: 护理 | F113: 72 | G113: 28.8 | H113: 80.67 | I113: 0.9823 | J113: 79.24 | K113: 47.55 | L113: 76.35 | N113: 否
A114: 106 | B114: 208 | C114: 唐婷 | D114: 52000301902 | E114: 护理 | F114: 72 | G114: 28.8 | H114: 80.67 | I114: 0.9823 | J114: 79.24 | K114: 47.55 | L114: 76.35 | N114: 否
A115: 107 | B115: 176 | C115: 苏丽 | D115: 52000403953 | E115: 护理 | F115: 70 | G115: 28 | H115: 82.00 | I115: 0.9823 | J115: 80.55 | K115: 48.33 | L115: 76.33 | N115: 否
A116: 108 | B116: 186 | C116: 何剑平 | D116: 52000405803 | E116: 护理 | F116: 70 | G116: 28 | H116: 82.00 | I116: 0.9823 | J116: 80.55 | K116: 48.33 | L116: 76.33 | N116: 否
A117: 109 | B117: 86 | C117: 舒玉玲 | D117: 52000406004 | E117: 护理 | F117: 74 | G117: 29.6 | H117: 76.00 | I117: 1.0239 | J117: 77.82 | K117: 46.69 | L117: 76.29 | N117: 否
A118: 110 | B118: 126 | C118: 程菲菲 | D118: 52000301655 | E118: 护理 | F118: 74 | G118: 29.6 | H118: 76.00 | I118: 1.0239 | J118: 77.82 | K118: 46.69 | L118: 76.29 | N118: 否
A119: 111 | B119: 53 | C119: 熊艺 | D119: 52000406510 | E119: 护理 | F119: 70 | G119: 28 | H119: 80.67 | I119: 0.9962 | J119: 80.36 | K119: 48.22 | L119: 76.22 | N119: 否
A120: 112 | B120: 205 | C120: 张薰月 | D120: 52000404746 | E120: 护理 | F120: 74 | G120: 29.6 | H120: 79.00 | I120: 0.9823 | J120: 77.60 | K120: 46.56 | L120: 76.16 | N120: 否
A121: 113 | B121: 188 | C121: 张倩倩 | D121: 52000303009 | E121: 护理 | F121: 70 | G121: 28 | H121: 81.67 | I121: 0.9823 | J121: 80.22 | K121: 48.13 | L121: 76.13 | N121: 否
A122: 114 | B122: 81 | C122: 孔曼 | D122: 52000303437 | E122: 护理 | F122: 70 | G122: 28 | H122: 78.33 | I122: 1.0239 | J122: 80.20 | K122: 48.12 | L122: 76.12 | N122: 否
A123: 115 | B123: 130 | C123: 温笛 | D123: 52000405514 | E123: 护理 | F123: 72 | G123: 28.8 | H123: 77.00 | I123: 1.0239 | J123: 78.84 | K123: 47.30 | L123: 76.10 | N123: 否
A124: 116 | B124: 159 | C124: 万庆云 | D124: 52000300318 | E124: 护理 | F124: 72 | G124: 28.8 | H124: 80.00 | I124: 0.9823 | J124: 78.58 | K124: 47.15 | L124: 75.95 | N124: 否
A125: 117 | B125: 206 | C125: 李小银 | D125: 52000301817 | E125: 护理 | F125: 72 | G125: 28.8 | H125: 80.00 | I125: 0.9823 | J125: 78.58 | K125: 47.15 | L125: 75.95 | N125: 否
A126: 118 | B126: 204 | C126: 杨洁 | D126: 52000406409 | E126: 护理 | F126: 70 | G126: 28 | H126: 81.33 | I126: 0.9823 | J126: 79.89 | K126: 47.93 | L126: 75.93 | N126: 否
A127: 119 | B127: 219 | C127: 赵雪蕾 | D127: 52000300632 | E127: 护理 | F127: 70 | G127: 28 | H127: 81.33 | I127: 0.9823 | J127: 79.89 | K127: 47.93 | L127: 75.93 | N127: 否
A128: 120 | B128: 4 | C128: 李倩 | D128: 52000403857 | E128: 护理 | F128: 70 | G128: 28 | H128: 80.00 | I128: 0.9962 | J128: 79.70 | K128: 47.82 | L128: 75.82 | N128: 否
A129: 121 | B129: 18 | C129: 黄霞 | D129: 52000405642 | E129: 护理 | F129: 70 | G129: 28 | H129: 80.00 | I129: 0.9962 | J129: 79.70 | K129: 47.82 | L129: 75.82 | N129: 否
A130: 122 | B130: 24 | C130: 安林艳 | D130: 52000404738 | E130: 护理 | F130: 70 | G130: 28 | H130: 80.00 | I130: 0.9962 | J130: 79.70 | K130: 47.82 | L130: 75.82 | N130: 否
A131: 123 | B131: 167 | C131: 刘冬敏 | D131: 52000404146 | E131: 护理 | F131: 74 | G131: 29.6 | H131: 78.33 | I131: 0.9823 | J131: 76.94 | K131: 46.17 | L131: 75.77 | N131: 否
A132: 124 | B132: 121 | C132: 杨静群 | D132: 52000405350 | E132: 护理 | F132: 72 | G132: 28.8 | H132: 76.33 | I132: 1.0239 | J132: 78.15 | K132: 46.89 | L132: 75.69 | N132: 否
A133: 125 | B133: 175 | C133: 邰正妮 | D133: 52000301029 | E133: 护理 | F133: 76 | G133: 30.4 | H133: 76.67 | I133: 0.9823 | J133: 75.31 | K133: 45.19 | L133: 75.59 | N133: 否
A134: 126 | B134: 217 | C134: 蒋敏 | D134: 52000300433 | E134: 护理 | F134: 72 | G134: 28.8 | H134: 79.33 | I134: 0.9823 | J134: 77.93 | K134: 46.76 | L134: 75.56 | N134: 否
A135: 127 | B135: 196 | C135: 靳文燕 | D135: 52000301012 | E135: 护理 | F135: 70 | G135: 28 | H135: 80.67 | I135: 0.9823 | J135: 79.24 | K135: 47.55 | L135: 75.55 | N135: 否
A136: 128 | B136: 5 | C136: 龙志梅 | D136: 52000301733 | E136: 护理 | F136: 70 | G136: 28 | H136: 79.33 | I136: 0.9962 | J136: 79.03 | K136: 47.42 | L136: 75.42 | N136: 否
A137: 129 | B137: 49 | C137: 彭梅 | D137: 52000403839 | E137: 护理 | F137: 70 | G137: 28 | H137: 79.33 | I137: 0.9962 | J137: 79.03 | K137: 47.42 | L137: 75.42 | N137: 否
A138: 130 | B138: 151 | C138: 王万林 | D138: 52000301420 | E138: 护理 | F138: 72 | G138: =F138*0.4 -> 28.8 | H138: 79.00 | I138: 0.9823 | J138: =H138*I138 -> 77.60 | K138: =J138*0.6 -> 46.56 | L138: =G138+K138 -> 75.36 | N138: 否
A139: 131 | B139: 191 | C139: 罗荣欣 | D139: 52000300337 | E139: 护理 | F139: 70 | G139: 28 | H139: 80.33 | I139: 0.9823 | J139: 78.91 | K139: 47.34 | L139: 75.34 | N139: 否
A140: 132 | B140: 214 | C140: 令狐绍容 | D140: 52000301558 | E140: 护理 | F140: 70 | G140: 28 | H140: 80.33 | I140: 0.9823 | J140: 78.91 | K140: 47.34 | L140: 75.34 | N140: 否
A141: 133 | B141: 105 | C141: 余心雨 | D141: 52000302847 | E141: 护理 | F141: 70 | G141: 28 | H141: 77.00 | I141: 1.0239 | J141: 78.84 | K141: 47.30 | L141: 75.30 | N141: 否
A142: 134 | B142: 87 | C142: 杜娟 | D142: 52000301351 | E142: 护理 | F142: 72 | G142: 28.8 | H142: 75.67 | I142: 1.0239 | J142: 77.48 | K142: 46.49 | L142: 75.29 | N142: 否
A143: 135 | B143: 64 | C143: 田雨欣 | D143: 52000302927 | E143: 护理 | F143: 76 | G143: 30.4 | H143: 75.00 | I143: 0.9962 | J143: 74.72 | K143: 44.83 | L143: 75.23 | N143: 否
A144: 136 | B144: 6 | C144: 刘加碟 | D144: 52000406033 | E144: 护理 | F144: 74 | G144: 29.6 | H144: 76.33 | I144: 0.9962 | J144: 76.04 | K144: 45.62 | L144: 75.22 | N144: 否
A145: 137 | B145: 83 | C145: 汪莎莉 | D145: 52000403607 | E145: 护理 | F145: 70 | G145: 28 | H145: 76.67 | I145: 1.0239 | J145: 78.50 | K145: 47.10 | L145: 75.10 | N145: 否
A146: 138 | B146: 95 | C146: 王露运 | D146: 52000405310 | E146: 护理 | F146: 70 | G146: 28 | H146: 76.67 | I146: 1.0239 | J146: 78.50 | K146: 47.10 | L146: 75.10 | N146: 否
A147: 139 | B147: 116 | C147: 王放 | D147: 52000300524 | E147: 护理 | F147: 70 | G147: 28 | H147: 76.67 | I147: 1.0239 | J147: 78.50 | K147: 47.10 | L147: 75.10 | N147: 否
A148: 140 | B148: 114 | C148: 汤念 | D148: 52000301148 | E148: 护理 | F148: 72 | G148: 28.8 | H148: 75.33 | I148: 1.0239 | J148: 77.13 | K148: 46.28 | L148: 75.08 | N148: 否
A149: 141 | B149: 127 | C149: 朱俊英 | D149: 52000300821 | E149: 护理 | F149: 72 | G149: 28.8 | H149: 75.33 | I149: 1.0239 | J149: 77.13 | K149: 46.28 | L149: 75.08 | N149: 否
A150: 142 | B150: 30 | C150: 田满怀 | D150: 52000302560 | E150: 护理 | F150: 70 | G150: 28 | H150: 78.67 | I150: 0.9962 | J150: 78.37 | K150: 47.02 | L150: 75.02 | N150: 否
A151: 143 | B151: 152 | C151: 刘娟 | D151: 52000405327 | E151: 护理 | F151: 72 | G151: 28.8 | H151: 78.33 | I151: 0.9823 | J151: 76.94 | K151: 46.17 | L151: 74.97 | N151: 否
A152: 144 | B152: 155 | C152: 潘罗琪 | D152: 52000404012 | E152: 护理 | F152: 70 | G152: 28 | H152: 79.67 | I152: 0.9823 | J152: 78.26 | K152: 46.96 | L152: 74.96 | N152: 否
A153: 145 | B153: 164 | C153: 王巡 | D153: 52000301059 | E153: 护理 | F153: 70 | G153: 28 | H153: 79.67 | I153: 0.9823 | J153: 78.26 | K153: 46.96 | L153: 74.96 | N153: 否
A154: 146 | B154: 172 | C154: 陈媛 | D154: 52000406306 | E154: 护理 | F154: 70 | G154: 28 | H154: 79.67 | I154: 0.9823 | J154: 78.26 | K154: 46.96 | L154: 74.96 | N154: 否
A155: 147 | B155: 96 | C155: 简王海 | D155: 52000303025 | E155: 护理 | F155: 70 | G155: 28 | H155: 76.33 | I155: 1.0239 | J155: 78.15 | K155: 46.89 | L155: 74.89 | N155: 否
A156: 148 | B156: 9 | C156: 李惠英 | D156: 52000404845 | E156: 护理 | F156: 74 | G156: 29.6 | H156: 75.67 | I156: 0.9962 | J156: 75.38 | K156: 45.23 | L156: 74.83 | N156: 否
A157: 149 | B157: 199 | C157: 汪有丽 | D157: 52000301550 | E157: 护理 | F157: 78 | G157: 31.2 | H157: 74.00 | I157: 0.9823 | J157: 72.69 | K157: 43.61 | L157: 74.81 | N157: 否
A158: 150 | B158: 149 | C158: 陈祝 | D158: 52000300702 | E158: 护理 | F158: 72 | G158: 28.8 | H158: 78.00 | I158: 0.9823 | J158: 76.62 | K158: 45.97 | L158: 74.77 | N158: 否
A159: 151 | B159: 203 | C159: 杨定琴 | D159: 52000404251 | E159: 护理 | F159: 70 | G159: 28 | H159: 79.33 | I159: 0.9823 | J159: 77.93 | K159: 46.76 | L159: 74.76 | N159: 否
A160: 152 | B160: 99 | C160: 王双 | D160: 52000404001 | E160: 护理 | F160: 70 | G160: 28 | H160: 76.00 | I160: 1.0239 | J160: 77.82 | K160: 46.69 | L160: 74.69 | N160: 否
A161: 153 | B161: 108 | C161: 张琴琴 | D161: 52000405553 | E161: 护理 | F161: 70 | G161: 28 | H161: 76.00 | I161: 1.0239 | J161: 77.82 | K161: 46.69 | L161: 74.69 | N161: 否
A162: 154 | B162: 111 | C162: 胡小兰 | D162: 52000404412 | E162: 护理 | F162: 72 | G162: 28.8 | H162: 74.67 | I162: 1.0239 | J162: 76.45 | K162: 45.87 | L162: 74.67 | N162: 否
A163: 155 | B163: 128 | C163: 卢维丽 | D163: 52000405038 | E163: 护理 | F163: 76 | G163: 30.4 | H163: 72.00 | I163: 1.0239 | J163: 73.72 | K163: 44.23 | L163: 74.63 | N163: 否
A164: 156 | B164: 60 | C164: 周红 | D164: 52000301760 | E164: 护理 | F164: 72 | G164: 28.8 | H164: 76.67 | I164: 0.9962 | J164: 76.38 | K164: 45.83 | L164: 74.63 | N164: 否
A165: 157 | B165: 173 | C165: 吴珊 | D165: 52000300849 | E165: 护理 | F165: 72 | G165: 28.8 | H165: 77.67 | I165: 0.9823 | J165: 76.30 | K165: 45.78 | L165: 74.58 | N165: 否
A166: 158 | B166: 210 | C166: 杨圆圆 | D166: 52000404955 | E166: 护理 | F166: 72 | G166: 28.8 | H166: 77.67 | I166: 0.9823 | J166: 76.30 | K166: 45.78 | L166: 74.58 | N166: 否
A167: 159 | B167: 76 | C167: 鄢忠灿 | D167: 52000404927 | E167: 护理 | F167: 72 | G167: 28.8 | H167: 74.33 | I167: 1.0239 | J167: 76.11 | K167: 45.66 | L167: 74.46 | N167: 否
A168: 160 | B168: 142 | C168: 杨杏 | D168: 52000405209 | E168: 护理 | F168: 74 | G168: 29.6 | H168: 73.00 | I168: 1.0239 | J168: 74.74 | K168: 44.85 | L168: 74.45 | N168: 否
A169: 161 | B169: 67 | C169: 石宏绍 | D169: 52000303343 | E169: 护理 | F169: 74 | G169: 29.6 | H169: 75.00 | I169: 0.9962 | J169: 74.72 | K169: 44.83 | L169: 74.43 | N169: 否
A170: 162 | B170: 36 | C170: 韦远虾 | D170: 52000404515 | E170: 护理 | F170: 70 | G170: 28 | H170: 77.67 | I170: 0.9962 | J170: 77.37 | K170: 46.42 | L170: 74.42 | N170: 否
A171: 163 | B171: 59 | C171: 刘晴 | D171: 52000404855 | E171: 护理 | F171: 72 | G171: 28.8 | H171: 76.33 | I171: 0.9962 | J171: 76.04 | K171: 45.62 | L171: 74.42 | N171: 否
A172: 164 | B172: 183 | C172: 罗莲 | D172: 52000403931 | E172: 护理 | F172: 72 | G172: 28.8 | H172: 77.33 | I172: 0.9823 | J172: 75.96 | K172: 45.58 | L172: 74.38 | N172: 否
A173: 165 | B173: 102 | C173: 令狐克欢 | D173: 52000404422 | E173: 护理 | F173: 72 | G173: 28.8 | H173: 74.00 | I173: 1.0239 | J173: 75.77 | K173: 45.46 | L173: 74.26 | N173: 否
A174: 166 | B174: 28 | C174: 赵耀 | D174: 52000404618 | E174: 护理 | F174: 70 | G174: 28 | H174: 77.33 | I174: 0.9962 | J174: 77.04 | K174: 46.22 | L174: 74.22 | N174: 否
A175: 167 | B175: 195 | C175: 阳珊 | D175: 52000302347 | E175: 护理 | F175: 72 | G175: 28.8 | H175: 77.00 | I175: 0.9823 | J175: 75.64 | K175: 45.38 | L175: 74.18 | N175: 否
A176: 168 | B176: 11 | C176: 李欣 | D176: 52000303160 | E176: 护理 | F176: 70 | G176: 28 | H176: 77.00 | I176: 0.9962 | J176: 76.71 | K176: 46.02 | L176: 74.02 | N176: 否
A177: 169 | B177: 26 | C177: 李丹 | D177: 52000301755 | E177: 护理 | F177: 70 | G177: 28 | H177: 77.00 | I177: 0.9962 | J177: 76.71 | K177: 46.02 | L177: 74.02 | N177: 否
A178: 170 | B178: 39 | C178: 田飞 | D178: 52000301110 | E178: 护理 | F178: 70 | G178: 28 | H178: 77.00 | I178: 0.9962 | J178: 76.71 | K178: 46.02 | L178: 74.02 | N178: 否
A179: 171 | B179: 17 | C179: 周雪莲 | D179: 52000301702 | E179: 护理 | F179: 70 | G179: 28 | H179: 76.67 | I179: 0.9962 | J179: 76.38 | K179: 45.83 | L179: 73.83 | N179: 否
A180: 172 | B180: 153 | C180: 高琴 | D180: 52000405802 | E180: 护理 | F180: 76 | G180: 30.4 | H180: 73.67 | I180: 0.9823 | J180: 72.37 | K180: 43.42 | L180: 73.82 | N180: 否
A181: 173 | B181: 193 | C181: 王梅 | D181: 52000300622 | E181: 护理 | F181: 72 | G181: 28.8 | H181: 76.33 | I181: 0.9823 | J181: 74.98 | K181: 44.99 | L181: 73.79 | N181: 否
A182: 174 | B182: 148 | C182: 刘文婷 | D182: 52000300332 | E182: 护理 | F182: 70 | G182: 28 | H182: 77.67 | I182: 0.9823 | J182: 76.30 | K182: 45.78 | L182: 73.78 | N182: 否
A183: 175 | B183: 91 | C183: 蔡欣 | D183: 52000405516 | E183: 护理 | F183: 70 | G183: 28 | H183: 74.33 | I183: 1.0239 | J183: 76.11 | K183: 45.66 | L183: 73.66 | N183: 否
A184: 176 | B184: 140 | C184: 陈玉玉 | D184: 52000405523 | E184: 护理 | F184: 70 | G184: 28 | H184: 74.00 | I184: 1.0239 | J184: 75.77 | K184: 45.46 | L184: 73.46 | N184: 否
A185: 177 | B185: 144 | C185: 聂远茂 | D185: 52000404648 | E185: 护理 | F185: 72 | G185: 28.8 | H185: 72.67 | I185: 1.0239 | J185: 74.41 | K185: 44.64 | L185: 73.44 | N185: 否
A186: 178 | B186: 1 | C186: 邓亚鹏 | D186: 52000302013 | E186: 护理 | F186: 72 | G186: 28.8 | H186: 74.67 | I186: 0.9962 | J186: 74.39 | K186: 44.63 | L186: 73.43 | N186: 否
A187: 179 | B187: 166 | C187: 沈所艳 | D187: 52000405540 | E187: 护理 | F187: 70 | G187: 28 | H187: 76.67 | I187: 0.9823 | J187: 75.31 | K187: 45.19 | L187: 73.19 | N187: 否
A188: 180 | B188: 98 | C188: 李肖倩 | D188: 52000403913 | E188: 护理 | F188: 70 | G188: 28 | H188: 73.33 | I188: 1.0239 | J188: 75.08 | K188: 45.05 | L188: 73.05 | N188: 否
A189: 181 | B189: 124 | C189: 吴娜娜 | D189: 52000405643 | E189: 护理 | F189: 72 | G189: 28.8 | H189: 72.00 | I189: 1.0239 | J189: 73.72 | K189: 44.23 | L189: 73.03 | N189: 否
A190: 182 | B190: 138 | C190: 黄明丹 | D190: 52000404235 | E190: 护理 | F190: 72 | G190: 28.8 | H190: 72.00 | I190: 1.0239 | J190: 73.72 | K190: 44.23 | L190: 73.03 | N190: 否
A191: 183 | B191: 197 | C191: 鲁鸿菲 | D191: 52000403721 | E191: 护理 | F191: 76 | G191: 30.4 | H191: 72.33 | I191: 0.9823 | J191: 71.05 | K191: 42.63 | L191: 73.03 | N191: 否
A192: 184 | B192: 92 | C192: 田立波 | D192: 52000300357 | E192: 护理 | F192: 70 | G192: 28 | H192: 73.00 | I192: 1.0239 | J192: 74.74 | K192: 44.85 | L192: 72.85 | N192: 否
A193: 185 | B193: 69 | C193: 张正碧 | D193: 52000404809 | E193: 护理 | F193: 76 | G193: 30.4 | H193: 71.00 | I193: 0.9962 | J193: 70.73 | K193: 42.44 | L193: 72.84 | N193: 否
A194: 186 | B194: 146 | C194: 彭艳兰 | D194: 52000300460 | E194: 护理 | F194: 70 | G194: 28 | H194: 72.67 | I194: 1.0239 | J194: 74.41 | K194: 44.64 | L194: 72.64 | N194: 否
A195: 187 | B195: 89 | C195: 胡榕 | D195: 52000403648 | E195: 护理 | F195: 72 | G195: 28.8 | H195: 71.33 | I195: 1.0239 | J195: 73.03 | K195: 43.82 | L195: 72.62 | N195: 否
A196: 188 | B196: 216 | C196: 郭立梅 | D196: 52000405808 | E196: 护理 | F196: 70 | G196: 28 | H196: 75.67 | I196: 0.9823 | J196: 74.33 | K196: 44.60 | L196: 72.60 | N196: 否
A197: 189 | B197: 38 | C197: 徐平 | D197: 52000301416 | E197: 护理 | F197: 70 | G197: 28 | H197: 74.33 | I197: 0.9962 | J197: 74.05 | K197: 44.43 | L197: 72.43 | N197: 否
A198: 190 | B198: 104 | C198: 黄娟娟 | D198: 52000301409 | E198: 护理 | F198: 70 | G198: 28 | H198: 72.00 | I198: 1.0239 | J198: 73.72 | K198: 44.23 | L198: 72.23 | N198: 否
A199: 191 | B199: 198 | C199: 张晓 | D199: 52000405218 | E199: 护理 | F199: 74 | G199: 29.6 | H199: 72.33 | I199: 0.9823 | J199: 71.05 | K199: 42.63 | L199: 72.23 | N199: 否
A200: 192 | B200: 133 | C200: 孔凡秀 | D200: 52000301501 | E200: 护理 | F200: 70 | G200: 28 | H200: 71.67 | I200: 1.0239 | J200: 73.38 | K200: 44.03 | L200: 72.03 | N200: 否
A201: 193 | B201: 209 | C201: 张凤敏 | D201: 52000405403 | E201: 护理 | F201: 70 | G201: 28 | H201: 74.67 | I201: 0.9823 | J201: 73.35 | K201: 44.01 | L201: 72.01 | N201: 否
... 26 more rows
